[Event "Live Chess"]
[Site "Chess.com"]
[Date "2023.05.21"]
[Round "-"]
[White "Ferrarifan27"]
[Black "tpm07"]
[Result "1-0"]
[WhiteElo "2053"]
[BlackElo "1959"]
[TimeControl "300"]
[EndTime "8:22:41 PDT"]
[Termination "Ferrarifan27 won on time"]

1. e4 {[%clk 0:04:57.8]} 1... e5 {[%clk 0:04:56.7]} 2. Nf3 {[%clk 0:04:57]} 2...
Nc6 {[%clk 0:04:55.8]} 3. Bb5 {[%clk 0:04:56.1]} 3... a6 {[%clk 0:04:55.1]} 4.
Ba4 {[%clk 0:04:54]} 4... Nf6 {[%clk 0:04:53.6]} 5. O-O {[%clk 0:04:49.3]} 5...
Be7 {[%clk 0:04:51.9]} 6. Re1 {[%clk 0:04:47.9]} 6... b5 {[%clk 0:04:49.5]} 7.
Bb3 {[%clk 0:04:44.5]} 7... O-O {[%clk 0:04:48.9]} 8. c3 {[%clk 0:04:40.1]} 8...
d5 {[%clk 0:04:47.4]} 9. exd5 {[%clk 0:04:40]} 9... Nxd5 {[%clk 0:04:46.3]} 10.
Nxe5 {[%clk 0:04:39.2]} 10... Nxe5 {[%clk 0:04:45.4]} 11. Rxe5 {[%clk
0:04:39.1]} 11... c6 {[%clk 0:04:44.8]} 12. d3 {[%clk 0:04:38.2]} 12... Bd6
{[%clk 0:04:43.1]} 13. Rh5 {[%clk 0:04:32.8]} 13... g6 {[%clk 0:04:34.6]} 14.
Rg5 {[%clk 0:04:23.2]} 14... h6 {[%clk 0:04:20.2]} 15. Rxd5 {[%clk 0:04:21.4]}
15... cxd5 {[%clk 0:04:18.5]} 16. Bxh6 {[%clk 0:04:21]} 16... Re8 {[%clk
0:04:16.1]} 17. Nd2 {[%clk 0:04:13.3]} 17... Qh4 {[%clk 0:04:09.6]} 18. g3
{[%clk 0:04:06.1]} 18... Qxh6 {[%clk 0:04:08.2]} 19. Bxd5 {[%clk 0:04:04.3]}
19... Rb8 {[%clk 0:04:05.8]} 20. Ne4 {[%clk 0:03:56.9]} 20... Be5 {[%clk
0:03:55.8]} 21. Qf3 {[%clk 0:03:52.3]} 21... Be6 {[%clk 0:03:36.3]} 22. Bc6
{[%clk 0:03:38.5]} 22... Rec8 {[%clk 0:03:27.2]} 23. d4 {[%clk 0:03:37]} 23...
Bg7 {[%clk 0:03:11.8]} 24. d5 {[%clk 0:03:26.9]} 24... Bf5 {[%clk 0:03:10.8]}
25. Nd6 {[%clk 0:03:24.3]} 25... Rf8 {[%clk 0:03:01.2]} 26. Nxf5 {[%clk
0:03:20.8]} 26... gxf5 {[%clk 0:03:01.1]} 27. Qxf5 {[%clk 0:03:19.9]} 27... Rbd8
{[%clk 0:02:43.1]} 28. Rd1 {[%clk 0:03:11.8]} 28... Rd6 {[%clk 0:02:36.3]} 29.
Re1 {[%clk 0:03:03.5]} 29... Qf6 {[%clk 0:02:30.8]} 30. Qc2 {[%clk 0:02:53.8]}
30... Rfd8 {[%clk 0:02:21.4]} 31. Kg2 {[%clk 0:02:44.8]} 31... Rxc6 {[%clk
0:01:56.3]} 32. dxc6 {[%clk 0:02:42.8]} 32... Qxc6+ {[%clk 0:01:55.8]} 33. Kg1
{[%clk 0:02:32.3]} 33... b4 {[%clk 0:01:48.2]} 34. c4 {[%clk 0:02:28]} 34... Rd4
{[%clk 0:01:40.4]} 35. b3 {[%clk 0:02:24.9]} 35... Qd7 {[%clk 0:01:23.7]} 36.
Re2 {[%clk 0:02:09.2]} 36... Rd1+ {[%clk 0:01:16.2]} 37. Kg2 {[%clk 0:02:08.1]}
37... Qc6+ {[%clk 0:01:10]} 38. f3 {[%clk 0:02:06.7]} 38... Ra1 {[%clk 0:01:04]}
39. Qe4 {[%clk 0:01:59.9]} 39... Qc5 {[%clk 0:00:57.8]} 40. Qd5 {[%clk
0:01:19.7]} 40... Qg1+ {[%clk 0:00:50.6]} 41. Kh3 {[%clk 0:01:18.6]} 41... Qf1+
{[%clk 0:00:46.9]} 42. Rg2 {[%clk 0:01:17.7]} 42... Rxa2 {[%clk 0:00:28.1]} 43.
Qd8+ {[%clk 0:01:16.2]} 43... Kh7 {[%clk 0:00:23.5]} 44. Qh4+ {[%clk 0:01:15]}
44... Bh6 {[%clk 0:00:20.8]} 45. Qe4+ {[%clk 0:01:11.5]} 45... Kg8 {[%clk
0:00:19.3]} 46. f4 {[%clk 0:00:58.2]} 46... Qxg2+ {[%clk 0:00:13.1]} 47. Qxg2
{[%clk 0:00:57.1]} 47... Rxg2 {[%clk 0:00:12.7]} 48. Kxg2 {[%clk 0:00:57]} 48...
a5 {[%clk 0:00:10.7]} 49. c5 {[%clk 0:00:50.6]} 49... Bf8 {[%clk 0:00:08.1]} 50.
c6 {[%clk 0:00:49.4]} 50... Bd6 {[%clk 0:00:06.9]} 51. Kf3 {[%clk 0:00:46.8]}
51... Kf8 {[%clk 0:00:05.5]} 52. Ke4 {[%clk 0:00:45.7]} 52... Ke7 {[%clk
0:00:04.5]} 53. Kd5 {[%clk 0:00:44.7]} 53... Bc7 {[%clk 0:00:02.9]} 54. Kc4
{[%clk 0:00:43.2]} 54... Kd6 {[%clk 0:00:01.6]} 55. Kb5 {[%clk 0:00:42.3]} 55...
Kd5 {[%clk 0:00:00.4]} 56. h4 {[%clk 0:00:41.5]} 1-0

[Event "Live Chess"]
[Site "Chess.com"]
[Date "2023.05.21"]
[Round "-"]
[White "EdenHazard8"]
[Black "martinsmartin63"]
[Result "1-0"]
[WhiteElo "1927"]
[BlackElo "767"]
[TimeControl "300"]
[EndTime "8:22:44 PDT"]
[Termination "EdenHazard8 won by resignation"]

1. e4 {[%clk 0:04:58.9]} 1... e5 {[%clk 0:04:57.6]} 2. Nf3 {[%clk 0:04:58]} 2...
Nc6 {[%clk 0:04:54.6]} 3. Bc4 {[%clk 0:04:57.1]} 3... Bc5 {[%clk 0:04:49]} 4.
O-O {[%clk 0:04:55.1]} 4... d5 {[%clk 0:04:44.4]} 5. exd5 {[%clk 0:04:54]} 5...
Nd4 {[%clk 0:04:42.1]} 6. Nxe5 {[%clk 0:04:52.5]} 6... Nf6 {[%clk 0:04:14.2]} 7.
d6 {[%clk 0:04:46.6]} 7... cxd6 {[%clk 0:04:10.5]} 8. Nxf7 {[%clk 0:04:45.4]}
8... Ke7 {[%clk 0:03:59.8]} 9. Re1+ {[%clk 0:04:43.2]} 9... Kd7 {[%clk 0:03:39]}
10. Nxd8 {[%clk 0:04:41.7]} 10... Rxd8 {[%clk 0:03:35.8]} 11. c3 {[%clk
0:04:40.7]} 11... Nc6 {[%clk 0:03:29.9]} 12. d4 {[%clk 0:04:39.2]} 12... Bb6
{[%clk 0:03:27]} 13. Bf4 {[%clk 0:04:32.4]} 13... Bc7 {[%clk 0:03:22.8]} 14.
Be6+ {[%clk 0:04:29.5]} 14... Ke8 {[%clk 0:03:16.8]} 15. Bxc8+ {[%clk
0:04:29.4]} 15... Kf8 {[%clk 0:03:13.2]} 16. Bxb7 {[%clk 0:04:29.3]} 16... Rab8
{[%clk 0:03:09.1]} 17. Bxc6 {[%clk 0:04:21.5]} 1-0

[Event "Live Chess"]
[Site "Chess.com"]
[Date "2023.05.21"]
[Round "-"]
[White "BJAW87"]
[Black "LiamClery2020"]
[Result "0-1"]
[WhiteElo "1442"]
[BlackElo "2010"]
[TimeControl "300"]
[EndTime "8:22:45 PDT"]
[Termination "LiamClery2020 won by resignation"]

1. e4 {[%clk 0:04:58.2]} 1... Nf6 {[%clk 0:04:59.9]} 2. e5 {[%clk 0:04:56.9]}
2... Nd5 {[%clk 0:04:54.5]} 3. d4 {[%clk 0:04:56.2]} 3... d6 {[%clk 0:04:53.6]}
4. Nf3 {[%clk 0:04:54.8]} 4... dxe5 {[%clk 0:04:52.7]} 5. Nxe5 {[%clk
0:04:54.7]} 5... c6 {[%clk 0:04:50.8]} 6. c4 {[%clk 0:04:51.3]} 6... Nb4 {[%clk
0:04:49.5]} 7. a3 {[%clk 0:04:39.6]} 7... Qxd4 {[%clk 0:04:48.3]} 8. axb4 {[%clk
0:04:29.1]} 8... Qxe5+ {[%clk 0:04:45.9]} 9. Be2 {[%clk 0:04:28]} 9... e6 {[%clk
0:04:43.9]} 10. O-O {[%clk 0:04:26.7]} 10... Bxb4 {[%clk 0:04:42.1]} 11. f4
{[%clk 0:04:13.8]} 11... Bc5+ {[%clk 0:04:36.1]} 12. Kh1 {[%clk 0:04:12.5]}
12... Qd4 {[%clk 0:04:31.6]} 13. Bd3 {[%clk 0:03:51.4]} 13... Nd7 {[%clk
0:04:27.9]} 14. Qf3 {[%clk 0:03:50.4]} 14... Nf6 {[%clk 0:04:25.9]} 15. Nd2
{[%clk 0:03:30]} 15... Qd7 {[%clk 0:04:07.9]} 16. b3 {[%clk 0:03:16.8]} 16...
O-O {[%clk 0:04:03]} 17. Bb2 {[%clk 0:03:15.1]} 17... Bd4 {[%clk 0:04:01.4]} 18.
Bxd4 {[%clk 0:03:06.3]} 18... Qxd4 {[%clk 0:04:01.3]} 19. Ne4 {[%clk 0:02:52]}
19... Nxe4 {[%clk 0:03:58.8]} 20. Bxe4 {[%clk 0:02:51.9]} 20... f5 {[%clk
0:03:57.3]} 21. Bd3 {[%clk 0:02:44.6]} 21... Qf6 {[%clk 0:03:54.2]} 22. Rad1
{[%clk 0:02:41.3]} 22... Rb8 {[%clk 0:03:50.1]} 23. g4 {[%clk 0:02:30.6]} 23...
fxg4 {[%clk 0:03:43.9]} 24. Qxg4 {[%clk 0:02:30.5]} 24... b6 {[%clk 0:03:42.5]}
25. Qh5 {[%clk 0:02:13.8]} 25... g6 {[%clk 0:03:36.6]} 26. Rg1 {[%clk
0:02:06.4]} 26... Kh8 {[%clk 0:03:26.6]} 27. Bxg6 {[%clk 0:02:02.7]} 27... Rb7
{[%clk 0:03:18.3]} 28. Be8 {[%clk 0:01:40.9]} 28... Qxf4 {[%clk 0:03:13.4]} 29.
Rdf1 {[%clk 0:00:53.7]} 29... Qe4+ {[%clk 0:03:08.7]} 0-1

[Event "Live Chess"]
[Site "Chess.com"]
[Date "2023.05.21"]
[Round "-"]
[White "ZackirtyChess"]
[Black "Long1968"]
[Result "0-1"]
[WhiteElo "1179"]
[BlackElo "967"]
[TimeControl "300"]
[EndTime "8:22:49 PDT"]
[Termination "Long1968 won by resignation"]

1. e4 {[%clk 0:04:58.3]} 1... e6 {[%clk 0:04:57.7]} 2. d4 {[%clk 0:04:56.9]}
2... d5 {[%clk 0:04:54.8]} 3. e5 {[%clk 0:04:55.4]} 3... c5 {[%clk 0:04:52.5]}
4. c3 {[%clk 0:04:54.5]} 4... cxd4 {[%clk 0:04:50.2]} 5. cxd4 {[%clk 0:04:52.4]}
5... Nc6 {[%clk 0:04:48.2]} 6. Nf3 {[%clk 0:04:49.1]} 6... Qb6 {[%clk 0:04:45]}
7. Qb3 {[%clk 0:04:45.3]} 7... Nxd4 {[%clk 0:04:26.2]} 8. Qxb6 {[%clk
0:04:42.8]} 8... Nxf3+ {[%clk 0:04:17.9]} 9. gxf3 {[%clk 0:04:41.4]} 9... axb6
{[%clk 0:04:16]} 10. Bb5+ {[%clk 0:04:41]} 10... Bd7 {[%clk 0:04:13.7]} 11.
Bxd7+ {[%clk 0:04:26]} 11... Kxd7 {[%clk 0:04:11.2]} 12. Nc3 {[%clk 0:03:56.7]}
12... Bb4 {[%clk 0:04:06.2]} 13. Bd2 {[%clk 0:03:55.3]} 13... Bxc3 {[%clk
0:04:02.5]} 14. Bxc3 {[%clk 0:03:53.7]} 14... Ne7 {[%clk 0:03:59.5]} 15. Rg1
{[%clk 0:03:52.7]} 15... Ng6 {[%clk 0:03:55.1]} 16. f4 {[%clk 0:03:49.8]} 16...
Rhg8 {[%clk 0:03:47.8]} 17. h4 {[%clk 0:03:48.8]} 17... Nxf4 {[%clk 0:03:42.6]}
18. Bd2 {[%clk 0:03:47.5]} 18... Nd3+ {[%clk 0:03:37.1]} 19. Ke2 {[%clk
0:03:45.7]} 19... Nxe5 {[%clk 0:03:29.8]} 20. Bc3 {[%clk 0:03:43.9]} 20... Kd6
{[%clk 0:03:17.5]} 21. f4 {[%clk 0:03:06.3]} 21... Ng6 {[%clk 0:03:09.3]} 22.
Kf3 {[%clk 0:02:47.4]} 22... Nxh4+ {[%clk 0:02:55.4]} 23. Kg4 {[%clk 0:02:24.6]}
23... Nf5 {[%clk 0:02:51.4]} 24. Kf3 {[%clk 0:02:19.1]} 0-1

[Event "Live Chess"]
[Site "Chess.com"]
[Date "2023.05.21"]
[Round "-"]
[White "manthanit"]
[Black "MarkLim1"]
[Result "1-0"]
[WhiteElo "1103"]
[BlackElo "1709"]
[TimeControl "300"]
[EndTime "8:22:56 PDT"]
[Termination "manthanit won by resignation"]

1. e4 {[%clk 0:04:59.6]} 1... c6 {[%clk 0:04:59.2]} 2. Nf3 {[%clk 0:04:58.7]}
2... d5 {[%clk 0:04:58.6]} 3. exd5 {[%clk 0:04:57.1]} 3... cxd5 {[%clk
0:04:57.9]} 4. d4 {[%clk 0:04:56.7]} 4... Nc6 {[%clk 0:04:57.1]} 5. Bb5 {[%clk
0:04:56.1]} 5... Bg4 {[%clk 0:04:55.5]} 6. O-O {[%clk 0:04:54.8]} 6... Nf6
{[%clk 0:04:53.3]} 7. h3 {[%clk 0:04:53.9]} 7... Bh5 {[%clk 0:04:51.6]} 8. Bg5
{[%clk 0:04:52.4]} 8... e6 {[%clk 0:04:49.8]} 9. c4 {[%clk 0:04:48.5]} 9... a6
{[%clk 0:04:48]} 10. Ba4 {[%clk 0:04:44.6]} 10... dxc4 {[%clk 0:04:43.9]} 11. b3
{[%clk 0:04:20.5]} 11... cxb3 {[%clk 0:04:34.9]} 12. Qxb3 {[%clk 0:04:17.2]}
12... Qd7 {[%clk 0:04:21.6]} 13. Ne5 {[%clk 0:04:06.8]} 13... Nxe5 {[%clk
0:04:15]} 14. Bxd7+ {[%clk 0:04:04.9]} 14... Nfxd7 {[%clk 0:04:13.2]} 15. dxe5
{[%clk 0:04:04.1]} 15... Nxe5 {[%clk 0:04:12.4]} 1-0

[Event "Live Chess"]
[Site "Chess.com"]
[Date "2023.05.21"]
[Round "-"]
[White "siddu198"]
[Black "WelshTiger"]
[Result "0-1"]
[WhiteElo "1616"]
[BlackElo "2335"]
[TimeControl "300"]
[EndTime "8:23:02 PDT"]
[Termination "WelshTiger won by checkmate"]

1. e4 {[%clk 0:04:57.5]} 1... c5 {[%clk 0:04:58.6]} 2. Nf3 {[%clk 0:04:56.3]}
2... d6 {[%clk 0:04:57.5]} 3. Nc3 {[%clk 0:04:55.2]} 3... Nc6 {[%clk 0:04:54.3]}
4. Bb5 {[%clk 0:04:54.2]} 4... Bd7 {[%clk 0:04:53.2]} 5. O-O {[%clk 0:04:53]}
5... a6 {[%clk 0:04:52.4]} 6. Bxc6 {[%clk 0:04:51.3]} 6... bxc6 {[%clk
0:04:51.6]} 7. Ne2 {[%clk 0:04:49.1]} 7... e5 {[%clk 0:04:50.4]} 8. c3 {[%clk
0:04:48.2]} 8... Nf6 {[%clk 0:04:49.8]} 9. Ng3 {[%clk 0:04:47.1]} 9... Be7
{[%clk 0:04:48.2]} 10. d3 {[%clk 0:04:46.3]} 10... O-O {[%clk 0:04:46.8]} 11. a3
{[%clk 0:04:45.5]} 11... a5 {[%clk 0:04:45.3]} 12. Bd2 {[%clk 0:04:41.8]} 12...
Rb8 {[%clk 0:04:44.1]} 13. b4 {[%clk 0:04:40.5]} 13... cxb4 {[%clk 0:04:38.9]}
14. axb4 {[%clk 0:04:38.8]} 14... axb4 {[%clk 0:04:37.6]} 15. cxb4 {[%clk
0:04:37.4]} 15... Qc7 {[%clk 0:04:24.8]} 16. Qc2 {[%clk 0:04:24.4]} 16... Qb7
{[%clk 0:04:17]} 17. Rfb1 {[%clk 0:04:19.9]} 17... Rfc8 {[%clk 0:04:15.5]} 18.
h3 {[%clk 0:04:05.1]} 18... h6 {[%clk 0:04:12.1]} 19. Be3 {[%clk 0:03:50.2]}
19... Ra8 {[%clk 0:04:09.8]} 20. Rxa8 {[%clk 0:03:45.2]} 20... Rxa8 {[%clk
0:04:09.7]} 21. Qc3 {[%clk 0:03:35.6]} 21... Qb5 {[%clk 0:04:04]} 22. d4 {[%clk
0:03:28.7]} 22... Be6 {[%clk 0:03:22.6]} 23. dxe5 {[%clk 0:03:19.6]} 23... dxe5
{[%clk 0:03:22.5]} 24. Bc5 {[%clk 0:03:14.1]} 24... Bxc5 {[%clk 0:03:18]} 25.
Qxc5 {[%clk 0:03:13]} 25... Qxc5 {[%clk 0:03:16.9]} 26. bxc5 {[%clk 0:03:12]}
26... Nd7 {[%clk 0:03:16.3]} 27. Rc1 {[%clk 0:02:55.6]} 27... Ra5 {[%clk
0:03:14.9]} 28. Kf1 {[%clk 0:02:41.7]} 28... f6 {[%clk 0:03:12.5]} 29. Rd1
{[%clk 0:02:36.2]} 29... Rxc5 {[%clk 0:03:10.1]} 30. Rd6 {[%clk 0:02:34.3]}
30... Kf7 {[%clk 0:03:09.2]} 31. Ne2 {[%clk 0:02:26.1]} 31... Ke7 {[%clk
0:03:04.9]} 32. Rd2 {[%clk 0:02:18.1]} 32... Ra5 {[%clk 0:02:57]} 33. Ne1 {[%clk
0:02:15.9]} 33... Ra1 {[%clk 0:02:54.3]} 34. f3 {[%clk 0:02:14.7]} 34... Bc4
{[%clk 0:02:51.1]} 35. Kf2 {[%clk 0:02:12.3]} 35... Nc5 {[%clk 0:02:49.5]} 36.
Rc2 {[%clk 0:02:05.1]} 36... Ra4 {[%clk 0:02:45.9]} 37. Ng3 {[%clk 0:02:00.8]}
37... g6 {[%clk 0:02:42]} 38. h4 {[%clk 0:01:51.1]} 38... h5 {[%clk 0:02:39.3]}
39. Rc3 {[%clk 0:01:41.9]} 39... Kd6 {[%clk 0:02:34.6]} 40. Ne2 {[%clk
0:01:37.7]} 40... Bb5 {[%clk 0:02:20.5]} 41. Nc1 {[%clk 0:01:26]} 41... Ne6
{[%clk 0:02:17.5]} 42. g3 {[%clk 0:01:17.3]} 42... Nd4 {[%clk 0:02:16]} 43. Ncd3
{[%clk 0:01:12.9]} 43... Ra2+ {[%clk 0:02:13.5]} 44. Ke3 {[%clk 0:01:04.8]}
44... Re2# {[%clk 0:02:09.9]} 0-1

[Event "Live Chess"]
[Site "Chess.com"]
[Date "2023.05.21"]
[Round "-"]
[White "HoarseyHorsey"]
[Black "1600x"]
[Result "0-1"]
[WhiteElo "1464"]
[BlackElo "1925"]
[TimeControl "300"]
[EndTime "8:23:14 PDT"]
[Termination "1600x won by resignation"]

1. d4 {[%clk 0:04:58.4]} 1... Nf6 {[%clk 0:04:56.6]} 2. c4 {[%clk 0:04:57.6]}
2... d5 {[%clk 0:04:55.5]} 3. cxd5 {[%clk 0:04:56.4]} 3... c6 {[%clk 0:04:54.5]}
4. Nc3 {[%clk 0:04:52.2]} 4... cxd5 {[%clk 0:04:53.1]} 5. Bg5 {[%clk 0:04:46.8]}
5... Nc6 {[%clk 0:04:51.4]} 6. e3 {[%clk 0:04:45.7]} 6... Ne4 {[%clk 0:04:50.1]}
7. Nxe4 {[%clk 0:04:43.6]} 7... dxe4 {[%clk 0:04:49.4]} 8. Ne2 {[%clk
0:04:39.8]} 8... Qa5+ {[%clk 0:04:47.6]} 9. Nc3 {[%clk 0:04:38.3]} 9... Qxg5
{[%clk 0:04:44.3]} 10. Nxe4 {[%clk 0:04:36.1]} 10... Qa5+ {[%clk 0:04:43.2]} 11.
Nc3 {[%clk 0:04:34.7]} 11... Qb6 {[%clk 0:04:42]} 12. Qd2 {[%clk 0:04:30.9]}
12... e6 {[%clk 0:04:40.8]} 13. Bd3 {[%clk 0:04:28.1]} 13... Bd7 {[%clk
0:04:39.2]} 14. O-O {[%clk 0:04:26.9]} 14... Bd6 {[%clk 0:04:37.9]} 15. Rac1
{[%clk 0:04:22.9]} 15... O-O {[%clk 0:04:36.4]} 16. a3 {[%clk 0:04:22.1]} 16...
Ne7 {[%clk 0:04:34.5]} 17. Ne4 {[%clk 0:04:20.9]} 17... Nf5 {[%clk 0:04:33.4]}
18. b4 {[%clk 0:04:18.7]} 18... Be7 {[%clk 0:04:31.9]} 19. Rc2 {[%clk
0:04:13.8]} 19... Bc6 {[%clk 0:04:29.7]} 20. Rfc1 {[%clk 0:04:03.2]} 20... a5
{[%clk 0:04:25.8]} 21. Rb2 {[%clk 0:03:54.9]} 21... Nh4 {[%clk 0:04:24.2]} 22.
bxa5 {[%clk 0:03:49]} 22... Qxa5 {[%clk 0:04:22.6]} 23. Qc2 {[%clk 0:03:37.1]}
23... Bxa3 {[%clk 0:04:08.8]} 24. Ra2 {[%clk 0:03:30.2]} 24... f5 {[%clk
0:04:07.1]} 25. Nc5 {[%clk 0:03:21.5]} 25... Bxg2 {[%clk 0:04:05.5]} 26. Rca1
{[%clk 0:03:14]} 26... Qb4 {[%clk 0:04:04.1]} 27. Bf1 {[%clk 0:03:01.3]} 27...
Bd5 {[%clk 0:04:02.7]} 28. Nd3 {[%clk 0:02:53.9]} 28... Nf3+ {[%clk 0:04:00.7]}
29. Kh1 {[%clk 0:02:49.3]} 29... Qd6 {[%clk 0:03:59.5]} 0-1

[Event "Live Chess"]
[Site "Chess.com"]
[Date "2023.05.21"]
[Round "-"]
[White "Hussamalhaidar"]
[Black "Mugzwang"]
[Result "1-0"]
[WhiteElo "1169"]
[BlackElo "1433"]
[TimeControl "300"]
[EndTime "8:23:19 PDT"]
[Termination "Hussamalhaidar won by resignation"]

1. b3 {[%clk 0:04:57]} 1... Nf6 {[%clk 0:04:52.4]} 2. Bb2 {[%clk 0:04:55.6]}
2... g6 {[%clk 0:04:51.5]} 3. Bxf6 {[%clk 0:04:53.3]} 3... exf6 {[%clk
0:04:48.6]} 4. Nf3 {[%clk 0:04:51]} 4... Bg7 {[%clk 0:04:47.5]} 5. Nc3 {[%clk
0:04:48.9]} 5... O-O {[%clk 0:04:46.3]} 6. e3 {[%clk 0:04:45.7]} 6... c6 {[%clk
0:04:39.5]} 7. d4 {[%clk 0:04:43.8]} 7... d5 {[%clk 0:04:38.1]} 8. Bd3 {[%clk
0:04:41.3]} 8... Bg4 {[%clk 0:04:25.6]} 9. h3 {[%clk 0:04:38.2]} 9... Be6 {[%clk
0:04:23]} 10. O-O {[%clk 0:04:33]} 10... Qd7 {[%clk 0:04:10.3]} 11. a3 {[%clk
0:04:28.3]} 11... Bh6 {[%clk 0:03:30.2]} 12. Qe2 {[%clk 0:04:23]} 12... Na6
{[%clk 0:03:11.4]} 13. Bxa6 {[%clk 0:04:19.2]} 13... bxa6 {[%clk 0:03:10.2]} 14.
Qxa6 {[%clk 0:04:17]} 14... Bxh3 {[%clk 0:03:05.2]} 15. gxh3 {[%clk 0:04:13.6]}
15... Qxh3 {[%clk 0:03:03.6]} 16. Nh2 {[%clk 0:04:02.6]} 16... f5 {[%clk
0:02:59.3]} 17. Qxc6 {[%clk 0:03:50.3]} 17... f4 {[%clk 0:02:54.5]} 18. Qxd5
{[%clk 0:03:43.1]} 18... fxe3 {[%clk 0:02:35.1]} 19. Qf3 {[%clk 0:03:17]} 19...
exf2+ {[%clk 0:02:24.1]} 20. Rxf2 {[%clk 0:03:12.9]} 20... Qd7 {[%clk
0:02:01.1]} 21. Rd1 {[%clk 0:03:03.2]} 21... Rac8 {[%clk 0:01:49.7]} 22. Nd5
{[%clk 0:02:52.4]} 22... Rcd8 {[%clk 0:01:26.3]} 23. Nf6+ {[%clk 0:02:47.4]} 1-0

[Event "Live Chess"]
[Site "Chess.com"]
[Date "2023.05.21"]
[Round "-"]
[White "MartinWalker4"]
[Black "zdanevych"]
[Result "1-0"]
[WhiteElo "2094"]
[BlackElo "1461"]
[TimeControl "300"]
[EndTime "8:23:23 PDT"]
[Termination "MartinWalker4 won by resignation"]

1. e4 {[%clk 0:04:55.9]} 1... c5 {[%clk 0:04:58.8]} 2. Nf3 {[%clk 0:04:54.1]}
2... e6 {[%clk 0:04:58.1]} 3. d4 {[%clk 0:04:51.7]} 3... d5 {[%clk 0:04:57.3]}
4. exd5 {[%clk 0:04:46.5]} 4... exd5 {[%clk 0:04:57.1]} 5. Bb5+ {[%clk 0:04:44]}
5... Nc6 {[%clk 0:04:56.1]} 6. Qe2+ {[%clk 0:04:42]} 6... Be6 {[%clk 0:04:51.8]}
7. O-O {[%clk 0:04:33.3]} 7... a6 {[%clk 0:04:50.9]} 8. Bxc6+ {[%clk 0:04:30.3]}
8... bxc6 {[%clk 0:04:50.8]} 9. Ne5 {[%clk 0:04:27.9]} 9... Qb6 {[%clk
0:04:44.1]} 10. dxc5 {[%clk 0:04:12]} 10... Bxc5 {[%clk 0:04:44]} 11. Nd3 {[%clk
0:04:10.3]} 11... Bd6 {[%clk 0:04:40.8]} 12. Be3 {[%clk 0:04:07.1]} 12... c5
{[%clk 0:04:27.8]} 13. b4 {[%clk 0:03:43.3]} 13... d4 {[%clk 0:04:21.1]} 14.
bxc5 {[%clk 0:03:41.2]} 14... Bxc5 {[%clk 0:04:14]} 15. Bf4 {[%clk 0:03:38.6]}
15... Be7 {[%clk 0:03:59.5]} 16. Nd2 {[%clk 0:03:36.2]} 16... Nf6 {[%clk
0:03:57.6]} 17. Nb3 {[%clk 0:03:22]} 17... Rd8 {[%clk 0:03:47]} 18. Rab1 {[%clk
0:03:16.5]} 18... O-O {[%clk 0:03:41]} 19. Nbc5 {[%clk 0:03:14.7]} 19... Qc6
{[%clk 0:03:27.5]} 20. Nxe6 {[%clk 0:03:10.4]} 20... fxe6 {[%clk 0:03:17.6]} 21.
Rfe1 {[%clk 0:03:09.2]} 21... Nd5 {[%clk 0:02:38.5]} 22. Be5 {[%clk 0:03:07.3]}
22... Bf6 {[%clk 0:02:30.3]} 23. Qg4 {[%clk 0:02:48.4]} 23... Rde8 {[%clk
0:01:50.1]} 24. Qxd4 {[%clk 0:02:36]} 24... Bxe5 {[%clk 0:01:44.7]} 25. Qxe5
{[%clk 0:02:16.2]} 25... Rf5 {[%clk 0:01:30.5]} 26. Qd4 {[%clk 0:01:45.1]} 26...
Qxc2 {[%clk 0:01:26.2]} 27. Rb2 {[%clk 0:01:43.6]} 27... Qc8 {[%clk 0:01:09.5]}
28. h3 {[%clk 0:01:35.5]} 28... h6 {[%clk 0:00:59.3]} 29. Reb1 {[%clk
0:01:27.5]} 29... Nf6 {[%clk 0:00:55.2]} 30. Qa7 {[%clk 0:01:01.9]} 30... Qc3
{[%clk 0:00:45.9]} 31. Qxa6 {[%clk 0:00:41.7]} 31... Ne4 {[%clk 0:00:42.4]} 32.
Qa4 {[%clk 0:00:36.8]} 32... Qc6 {[%clk 0:00:34.8]} 33. Qxc6 {[%clk 0:00:34.8]}
33... Nd2 {[%clk 0:00:32.2]} 34. Qxe8+ {[%clk 0:00:31.4]} 1-0

[Event "Live Chess"]
[Site "Chess.com"]
[Date "2023.05.21"]
[Round "-"]
[White "Alfiedog12"]
[Black "SupremeTactician"]
[Result "0-1"]
[WhiteElo "870"]
[BlackElo "2190"]
[TimeControl "300"]
[EndTime "8:23:35 PDT"]
[Termination "SupremeTactician won by checkmate"]

1. d4 {[%clk 0:04:56.8]} 1... Nf6 {[%clk 0:04:57.9]} 2. Bf4 {[%clk 0:04:55.5]}
2... e6 {[%clk 0:04:57.3]} 3. e3 {[%clk 0:04:54.5]} 3... b6 {[%clk 0:04:56.7]}
4. Nf3 {[%clk 0:04:53.7]} 4... Bb7 {[%clk 0:04:56.1]} 5. Nbd2 {[%clk 0:04:50.6]}
5... Be7 {[%clk 0:04:55.7]} 6. c3 {[%clk 0:04:49.8]} 6... O-O {[%clk 0:04:53.7]}
7. Qc2 {[%clk 0:04:46.8]} 7... d6 {[%clk 0:04:53]} 8. Bd3 {[%clk 0:04:40.2]}
8... h6 {[%clk 0:04:51.7]} 9. Bg3 {[%clk 0:04:33]} 9... Nbd7 {[%clk 0:04:49.2]}
10. Bh4 {[%clk 0:04:29.9]} 10... Nd5 {[%clk 0:04:42.2]} 11. Bxe7 {[%clk
0:04:22.9]} 11... Qxe7 {[%clk 0:04:39.2]} 12. g4 {[%clk 0:04:15.9]} 12... c5
{[%clk 0:04:23.6]} 13. g5 {[%clk 0:03:59.8]} 13... hxg5 {[%clk 0:04:16.9]} 14.
Rg1 {[%clk 0:03:41.4]} 14... cxd4 {[%clk 0:04:13.9]} 15. exd4 {[%clk 0:03:32.9]}
15... Nf4 {[%clk 0:04:11.5]} 16. Rxg5 {[%clk 0:03:23.9]} 16... Nxd3+ {[%clk
0:04:07.9]} 17. Qxd3 {[%clk 0:03:22.2]} 17... Bxf3 {[%clk 0:04:05.7]} 18. Nxf3
{[%clk 0:03:17.6]} 18... e5 {[%clk 0:04:05]} 19. dxe5 {[%clk 0:03:00.5]} 19...
Nxe5 {[%clk 0:03:59.7]} 20. Rxe5 {[%clk 0:02:02.7]} 20... dxe5 {[%clk
0:03:57.8]} 21. O-O-O {[%clk 0:02:00.7]} 21... Rad8 {[%clk 0:03:54.1]} 22. Qf5
{[%clk 0:01:41]} 22... Rxd1+ {[%clk 0:03:50.4]} 23. Kxd1 {[%clk 0:01:39.6]}
23... Rd8+ {[%clk 0:03:50]} 24. Kc2 {[%clk 0:01:35.8]} 24... Qf6 {[%clk
0:03:42.1]} 25. Qxe5 {[%clk 0:01:15.8]} 25... Qxf3 {[%clk 0:03:37.2]} 26. Qe7
{[%clk 0:01:08]} 26... Qd3+ {[%clk 0:03:32]} 27. Kb3 {[%clk 0:01:05.4]} 27...
Qd5+ {[%clk 0:03:31.1]} 28. Kc2 {[%clk 0:01:00.9]} 28... Qd1# {[%clk 0:03:30.1]}
0-1